Cogmind - Beta 17.1 @@@ ROGUE MODE // 2026.09.12 @ 21:38:03 Player: aihara Result: Destroyed by G-47 Trooper with Particle Gun Performance ------------- Evolutions (1) 500 Regions Visited (3) 600 Robots Destroyed (42) 210 Value Destroyed (1039) 1039 Prototype IDs (2) 40 Alien Tech Used (0) 0 Bonus (7) 7 TOTAL SCORE: 2396 Bonus ------- Follower Combat Kills 7 Cogmind --------- Core Integrity 0/400 Matter 247/300 Energy 18/100 System Corruption 0% Temperature Hot (202) Movement Core (150) Ox2 Location -9/Materials Parts ------- > --- POWER (1) -------- (None) > --- PROPULSION (3) --- (None) > --- UTILITY (3) ------ Insulated Plating > --- WEAPON (2) ------- Ion Cannon > --- INVENTORY (5) ---- Medium Storage Unit Ion Cannon Improved Light Cannon Peak State ------------ > --- POWER ------------ Improved Ion Engine > --- PROPULSION ------- Aluminum Leg Aluminum Leg Improved Aluminum Leg > --- UTILITY ---------- Terrain Scanner Insulated Plating Insulated Plating > --- WEAPON ----------- Beam Rifle Ion Cannon > --- INVENTORY -------- Aluminum Leg Medium Storage Unit Ion Cannon Improved Light Cannon Grenade Launcher [Rating: 18] Favorites ----------- Power Ion Engine Engine Ion Engine Propulsion Compact Wheel Leg Aluminum Leg Wheel Compact Wheel Utility Terrain Scanner Device Terrain Scanner Storage Medium Storage Unit Protection Insulated Plating Weapon EM Pulse Gun Energy Gun EM Pulse Gun Energy Cannon Ion Cannon Ballistic Gun Assault Rifle Ballistic Cannon Improved Light Cannon Launcher Grenade Launcher Build | -11 -10 -10 -9 ------- Run | Yrd Mat Min Mat Slots Evolved 2 | . . . 2 Power . | . . . . Propulsion 1 | . . . 1 Utility 1 | . . . 1 Weapon . | . . . . Parts Attached 30 | 6 8 2 14 Power 4 | 1 1 1 1 Engine 4 | 1 1 1 1 Core . | . . . . Reactor . | . . . . Propulsion 8 | 2 1 . 5 Treads . | . . . . Leg 5 | . . . 5 Wheel 3 | 2 1 . . Hover . | . . . . Flight . | . . . . Utility 7 | 1 2 . 4 Device 1 | . 1 . . Storage 3 | 1 1 . 1 Processor . | . . . . Hackware . | . . . . Protection 3 | . . . 3 Artifact . | . . . . Weapon 11 | 2 4 1 4 Energy Gun 6 | 1 3 1 1 Energy Cannon 2 | . . . 2 Ballistic Gun 1 | 1 . . . Ballistic Cannon 1 | . . . 1 Launcher 1 | . 1 . . Special Weapon . | . . . . Impact Weapon . | . . . . Slashing Weapon . | . . . . Piercing Weapon . | . . . . Special Melee Weapon . | . . . . Unidentified Prototypes . | . . . . Parts Lost 14 | . 2 . 12 Power 1 | . . . 1 Propulsion 5 | . . . 5 Utility 3 | . . . 3 Weapon 5 | . 2 . 3 Highest Loss Streak 9 | . 1 . 9 To Critical Strikes . | . . . . Average Backups 5 | 1 4 5 5 Power . | . . . . Propulsion 2 | . 2 3 1 Utility . | . . . . Weapon 2 | . 2 2 2 Tool/Special . | . . . . Unused Backups 4 | . 2 . 2 Power 1 | . 1 . . Propulsion . | . . . . Utility . | . . . . Weapon 3 | . 1 . 2 Tool/Special . | . . . . Average Slot Usage (%) 91 | . 98 100 76 Engine 12 | . 14 14 9 Leg 4 | . . . 13 Wheel 22 | . 28 28 11 Device 11 | . 13 14 8 Storage 11 | . 14 14 6 Protection 2 | . . . 6 Energy Gun 22 | . 24 28 14 Energy Cannon 1 | . . . 3 Peak Build Rating 18 | 6 7 7 18 Average Rating 7 | 4 6 7 9 On Entrance 5 | . 6 7 7 Avg Prop Armor Cover (%) 20 | . . . 20 Naked Turns . | . . . . Heaviest Build 50 | 14 21 20 50 Greatest Support 33 | 32 32 32 33 Greatest Overweight (x) 6 | . 6 . 3 Average Overweight (x) . | . . . . Largest Inventory Capacity 20 | 8 10 10 20 Average Capacity 10 | 7 8 10 12 Most Carried 7 | 4 7 7 7 Average Carried 5 | 1 4 5 5 Final Capacity 10 | 8 10 10 5 Final Carried 6 | 4 5 6 3 Class Distribution -------------------- 100% | Mutant Dominant Class ---------------- Mutant | -10/Materials Mutant | -10/Mines Mutant | -9/Materials Resources | -11 -10 -10 -9 ----------- Run | Yrd Mat Min Mat Matter Collected 554 | 223 99 91 141 Remotely . | . . . . Salvage Created 1225 | . 488 77 660 Parts 77 | . 28 10 39 Haulers Intercepted . | . . . . Recyclers Shooed 3 | . 2 . 1 Parts Field Recycled . | . . . . Retrieved Matter . | . . . . Parts Self-Destructed . | . . . . Prevented . | . . . . Parts Restored . | . . . . Kills | -11 -10 -10 -9 ------- Run | Yrd Mat Min Mat Combat Hostiles Destroyed 35 | . 16 5 14 Guns 18 | . 11 4 3 Cannons 10 | . . . 10 AOE 7 | . 5 1 1 Classes Destroyed 7 | . 5 . 2 Worker 1 | . 1 . . Recycler 1 | . 1 . . Watcher 5 | . 2 . 3 Swarmer 14 | . 9 5 . Grunt 15 | . 7 . 8 Duelist 1 | . . . 1 Sentry 5 | . . . 5 Best Kill Streak 5 | . 4 3 5 Combat Bots Only 5 | . 3 3 5 Max Kills in Single Turn 3 | . 3 1 2 Gunslinging 1 | . 1 . . Exploded 2 | . 2 1 1 Melee . | . . . . Uniques/NPCs Destroyed . | . . . . Combat | -11 -10 -10 -9 -------- Run | Yrd Mat Min Mat Hostile Shots Fired 207 | . 42 31 134 Missed 61 | . 18 7 36 Hits 146 | . 24 24 98 Melee 1 | . . . 1 Projectile 145 | . 24 24 97 Critical Strikes 3 | . . 1 2 Damage Taken 1785 | . 259 194 1332 Core 526 | . 74 43 409 Absorbed by Shields . | . . . . Core Remaining (%) 76 | 100 . 53 . Volleys Fired 85 | . 28 9 48 Largest 2 | . 2 2 2 Hottest 116 | . 80 80 116 Shots Fired 140 | . 49 18 73 Gun 100 | . 44 18 38 Cannon 34 | . . . 34 Launcher 6 | . 5 . 1 Special . | . . . . Kinetic 4 | . . . 4 Thermal 56 | . . . 56 Explosive 6 | . 5 . 1 Electromagnetic 74 | . 44 18 12 Robot Hit Streak 11 | . 11 6 10 Robot Miss Streak 5 | . 3 5 4 Penetration Max . | . . . . Secondary Targets 1 | . 1 . . Max Gunslinging Chain 1 | . 1 . . Shots Hit Robots 85 | . 28 8 49 Core Hits 62 | . 29 5 28 Critical Kills . | . . . . Critical Parts Destroyed . | . . . . Critical Strikes 3 | . . . 3 Burn 2 | . . . 2 Blast 1 | . . . 1 Melee Attacks . | . . . . Impact . | . . . . Slashing . | . . . . Piercing . | . . . . Sneak Attacks . | . . . . Combat Hostiles . | . . . . Follow-up Attacks . | . . . . Damage Inflicted 2356 | . 947 214 1195 Guns 858 | . 372 110 376 Cannons 576 | . . . 576 Explosions 898 | . 555 102 241 Melee . | . . . . Ramming 24 | . 20 2 2 Kinetic 42 | . . . 42 Thermal 1109 | . 199 102 808 Explosive 597 | . 356 . 241 Electromagnetic 584 | . 372 110 102 Impact . | . . . . Slashing . | . . . . Piercing . | . . . . Highest Corruption . | . . . . Average Corruption . | . . . . Corruption Purged . | . . . . Corruption Blocked . | . . . . Overload Shots . | . . . . Overflow Damage 32 | . 19 . 13 Projectiles . | . . . . Explosions 32 | . 19 . 13 Melee . | . . . . Knockbacks . | . . . . Impact . | . . . . Kinetic . | . . . . Secondary . | . . . . Self-Inflicted Damage 80 | . 39 1 40 Shots 2 | . 1 . 1 Rammed 6 | . 4 1 1 Targets Rammed 7 | . 4 1 2 Kicked 1 | . . . 1 Crushed . | . . . . Highest Temperature 652 | . 84 36 652 Average Temperature 166 | . 25 16 233 Received Heat Transfer 726 | . 72 . 654 Effects 21 | . . . 21 Shutdowns 3 | . . . 3 Energy Bleed 3 | . . . 3 Interference 3 | . . . 3 Matter Decay 1 | . . . 1 Short Circuit 3 | . . . 3 Damage (major) 7 | . . . 7 Damage (core) 1 | . . . 1 Siege Activations . | . . . . Martial Activations . | . . . . Shielding Activations . | . . . . Robots Disrupted . | . . . . Combat Hostiles . | . . . . Robots Corrupted . | . . . . Combat Hostiles . | . . . . Parts Fried 3 | . 2 1 . Impact Corruptions . | . . . . Robots Melted . | . . . . Combat Hostiles . | . . . . Parts Melted 5 | . 2 . 3 Heat Transferred 2002 | . 150 150 1702 Parts Sabotaged . | . . . . Parts Stolen . | . . . . Parts Stripped . | . . . . Power Chain Reactions 3 | . 2 1 . Alert | -11 -10 -10 -9 ------- Run | Yrd Mat Min Mat Maximum Alert Level 1 | . 1 . . Low Security (%) 93 | 100 78 100 100 Level 1 6 | . 21 . . Level 2 . | . . . . Level 3 . | . . . . Level 4 . | . . . . Level 5 . | . . . . High Security . | . . . . Max Security . | . . . . Peak Influence 288 | . 288 158 153 Initial 99 | . . 99 . Average 62 | . 98 66 32 Influence Increases 1078 | . 479 163 436 Destroy 0b10 Robot/C 720 | . 320 120 280 Destroy 0b10 Robot/NC 35 | . 20 . 15 Destroy Leader 180 | . 74 20 86 Allied During Kill 4 | . . 4 . Successful Hack 24 | . 19 . 5 Disable Machine 45 | . 15 15 15 Destroy Structure 40 | . 31 4 5 Lose Combat Pursuer 30 | . . . 30 Influence Decreases 925 | . 223 419 283 Entered New Map 157 | . . 157 . Time Decay 643 | . 203 262 178 Lost Part 125 | . 20 . 105 Squads Dispatched 6 | . 4 . 2 Investigation 3 | . 2 . 1 Extermination . | . . . . Reinforcement 3 | . 2 . 1 Assault . | . . . . Garrison . | . . . . Intercept . | . . . . Searches Triggered . | . . . . Construction Impeded . | . . . . Haulers Reinforced . | . . . . Active Scanning Responses . | . . . . Cargo Convoy Interrupts . | . . . . Stealth | -11 -10 -10 -9 --------- Run | Yrd Mat Min Mat Distress Signals 1 | . . . 1 Communications Jammed . | . . . . Distress Signals . | . . . . Times Spotted 53 | . 19 6 28 Peak Tracking Total 9 | . 5 3 9 Tactical Retreats 2 | . . . 2 Traps | -11 -10 -10 -9 ------- Run | Yrd Mat Min Mat Traps Triggered . | . . . . Indirectly . | . . . . Trap Hack Attempts . | . . . . Triggered . | . . . . Disarmed 1 | . 1 . . Reprogrammed . | . . . . Reused . | . . . . Traps Extracted . | . . . . Installed . | . . . . Triggered . | . . . . Machines | -11 -10 -10 -9 ---------- Run | Yrd Mat Min Mat Machines Disabled 4 | . 1 1 2 Max in Single Turn 1 | . 1 1 1 Machines Repaired . | . . . . Machines Dismantled . | . . . . Machines Sabotaged . | . . . . Overloaded Fab Kills . | . . . . Hacking | -11 -10 -10 -9 --------- Run | Yrd Mat Min Mat Machines Accessed 9 | . 8 . 1 Terminals 7 | . 6 . 1 Fabricators . | . . . . Repair Stations . | . . . . Recycling Units 2 | . 2 . . Scanalyzers . | . . . . Garrison Access . | . . . . Total Hacks 32 | . 29 . 3 Successful 21 | . 19 . 2 Failed 11 | . 10 . 1 Catastrophic 2 | . 2 . . Database Lockouts . | . . . . Manual . | . . . . Terminals 21 | . 18 . 3 Fabricators . | . . . . Repair Stations . | . . . . Recycling Units 11 | . 11 . . Scanalyzers . | . . . . Garrison Access . | . . . . Terminal Hacks 12 | . 10 . 2 Prototype ID Bank 1 | . 1 . . Locate Traps 4 | . 4 . . Disarm Traps 1 | . 1 . . Dispatch Records 1 | . . . 1 Maintenance Status 1 | . 1 . . Patrol Status 1 | . 1 . . Transport Status 1 | . 1 . . Registered Components 1 | . 1 . . Zone Layout 1 | . . . 1 Fabricator Hacks . | . . . . Repair Station Hacks . | . . . . Recycling Unit Hacks 9 | . 9 . . Recycle Component 6 | . 6 . . Process 3 | . 3 . . Scanalyzer . | . . . . Garrison Access Hacks . | . . . . Unauthorized Hacks . | . . . . Terminals . | . . . . Fabricators . | . . . . Repair Stations . | . . . . Recycling Units . | . . . . Scanalyzers . | . . . . Garrison Access . | . . . . Data Cores Recovered . | . . . . Used . | . . . . Hacking Detections 7 | . 6 . 1 Full Trace Events 5 | . 4 . 1 Feedback Events . | . . . . Feedback Blocked . | . . . . Robot Schematics Acquired . | . . . . Robots Built . | . . . . Authchips . | . . . . Time . | . . . . Total Robot Build Rating . | . . . . Part Schematics Acquired . | . . . . Parts Built . | . . . . Authchips . | . . . . Time . | . . . . Total Part Build Rating . | . . . . Part Studies Acquired . | . . . . Parts Repaired . | . . . . Time . | . . . . Parts Recycled 6 | . 6 . . Recycled Matter 204 | . 204 . . Retrieved Matter . | . . . . Retrieved Components . | . . . . Parts Scanalyzed . | . . . . Part Schematics Acquired . | . . . . Parts Damaged . | . . . . Bothacking | -11 -10 -10 -9 ------------ Run | Yrd Mat Min Mat Used RIF Installer . | . . . . Robots Hacked . | . . . . Non-combat . | . . . . Combat . | . . . . Robot Hacks Applied . | . . . . Relay Couplers Released . | . . . . Fabnet Peak Effective % . | . . . . Robots Rewired . | . . . . Allies Hacked . | . . . . Hacks Repelled . | . . . . Allies | -11 -10 -10 -9 -------- Run | Yrd Mat Min Mat Total Allies 4 | . . 4 . Largest Group 4 | . . 4 . Highest-Rated Group 71 | . . 71 . Highest-Rated Ally 31 | . . 31 . Total Orders . | . . . . Ally Attacks 3 | . . 3 . Total Damage 42 | . . 42 . Kills 1 | . . 1 . Allies Corrupted . | . . . . Allies Melted . | . . . . Intel | -11 -10 -10 -9 ------- Run | Yrd Mat Min Mat Active Infowar (turns) 1691 | . 544 693 454 Terrain 1691 | . 544 693 454 Robot Analysis Total . | . . . . Derelict Logs Recovered 1 | . . 1 . Drone Launches . | . . . . Drone Recoveries . | . . . . Exploration | -11 -10 -10 -9 ------------- Run | Yrd Mat Min Mat Turns Passed 1967 | 65 562 693 647 Spaces Moved 1532 | 54 428 656 394 Core 26 | 6 1 . 19 Treads . | . . . . Legs 123 | . . . 123 Wheels 1383 | 48 427 656 252 Hover . | . . . . Flight . | . . . . Fastest Speed 50 | 50 100 100 50 Average Speed 104 | 94 100 100 116 Slowest Speed 350 | 100 350 100 260 Overloaded Moves . | . . . . Propulsion Burnouts . | . . . . Robots Hopped . | . . . . Potential Cave-ins . | . . . . Cave-ins Triggered . | . . . . Exploration Rate (%) 47 | 4 56 94 37 Regions Visited 3 Branch Regions 1 Pre-discovered Areas 1 | . . 1 . Known Exits Taken . | . . . . Unknown Exits Taken 3 | 1 1 1 . Scrap Searched 2 | . . 2 . Spaces Dug . | . . . . Terrain Destroyed 35 | . 27 4 4 Melee . | . . . . Projectile 3 | . . . 3 AOE 32 | . 27 4 1 Terrain Rammed . | . . . . Walls Destroyed . | . . . . Machines Disabled . | . . . . Actions | -11 -10 -10 -9 --------- Run | Yrd Mat Min Mat Total 1758 | 65 511 675 507 Wait 56 | 1 21 3 31 Move 1529 | 53 427 655 394 Hop . | . . . . Pick Up 22 | 5 12 2 3 Fast Attach 16 | 5 2 . 9 Attach 7 | 1 2 . 4 Detach 4 | . 1 . 3 Swap 13 | . 6 2 5 Drop 19 | . 8 3 8 Fire 85 | . 28 9 48 Melee . | . . . . Ram 6 | . 4 1 1 Kick 1 | . . . 1 Crush . | . . . . Escape Stasis . | . . . . Rewire . | . . . . Trap . | . . . . Miscellaneous . | . . . . Route ------- -11/Scrapyard -10/Materials (discovered 3 exits: *Mat x2 / [*Min]) -10/Mines (discovered 3 exits: *Mat x2 / [*Sub]) -9/Materials (discovered 2 exits: [*Mat] / [*Min]) History --------- Turn | Location | Event 17 | -11/Scrapyard | Discovered new exit (range 15) 66 | -11/Scrapyard | Entered Materials 303 | -10/Materials | Build established: Mutant 356 | -10/Materials | Discovered new exit (range 3) 550 | -10/Materials | Discovered new exit (range 15) 610 | -10/Materials | Discovered new exit (range 16) 628 | -10/Materials | Entered Mines 835 | -10/Mines | Received a Mining Laser from a helpful Derelict 879 | -10/Mines | Discovered new exit (range 10) 953 | -10/Mines | Discovered new exit (range 6) 1061 | -10/Mines | Assisted by bots powering up and referring to "LRC-V3" 1074 | -10/Mines | Discovered new exit (range 11) 1254 | -10/Mines | Learned location of Mines (-8) 1321 | -10/Mines | Entered Materials 1321 | -9/Materials | Evolved 2 slots: Propulsion x1, Utility x1 1517 | -9/Materials | Discovered new exit (range 12) 1849 | -9/Materials | Discovered new exit (range 17) 1919 | -9/Materials | Core integrity fell below 50% 1955 | -9/Materials | Core integrity fell below 20% 1968 | -9/Materials | Destroyed by G-47 Trooper with Particle Gun Last Messages --------------- K-01 Serf collects debris. Ion Engine melted. G-34 Mercenary destroyed. U-05 Engineer builds a Wall. K-01 Serf collects debris. Acquired 38 matter. K-01 Serf collects debris. G-34 Mercenary destroyed. Broken Aluminum Leg destroyed. M-13 Machinist repairs G-47 Trooper. Aluminum Leg destroyed. U-05 Engineer builds a Door. K-01 Serf collects debris. Overheating: Energy bleed (-3). U-05 Engineer builds a Wall. Acquired Insulated Plating. G-34 Mercenary destroyed. M-13 Machinist repairs G-47 Trooper. G-34 Mercenary destroyed. Critical hit (Burn: +37). Map ----- +----------------------------------------------------+ | ?????????????????????????????????????????? | | ?????????????????????????????????????????? | | ?????????????????????????????????????????? | | ?????????????????????????????????????????? | | ?????????????????????????????????????????? | | ?????????????????????????????????????????? | | ?????????????????????????????????????????? | | ?????????????????????????????????????????? | | ?????????????????????????????????????????? | | ?????????????????????????????????????????? | | ?????????????????????????????????????????? | | ?????????????????????????????????????????? | | ?????????????????????????????????????????? | | ?????????????????????????????????????????? | | ?????????????????????????????????????????? | | ??????????????#??????????????????????????? | | ??????#???#?????????????????????# / "" | | ?????###???????#????????????????# # | | ######=###?#?#???????##?????????# # | | # [%! ##??????#??????#???????## ##### | | #" ""!*! #????##?#?#????#????????# #?### | | #" """ #??#???#????#???????????# #?# | | #" """ ##??????????#???????????# #?# | | #T = #???????????????????????# #?# | | #" """ #?########????????????### #?### | | #" """ / #?# ]!! @##????#???#??# ##### | | #" """ #?# ]!! !#?#?########?# | | # #?#=! #??## [### | | #####+###### [gg##### =% ## ] | | ??## u g%[=% / "" ### ##### | | ???# ######## = = # T" #?### ####### | | ???# # #[ %# "" #???# # T | | ???# # + ! */ #??## # " | | ???# # """ #%##########/####### # | | ???# # """ # #??##?#?# % # ! | | ??## # """ # #?#????## + %= = | | #??# # # #???????# ## * =% | | ???# ######## ######### ## [ | | ???# # + ## | | ???# #""" # #### # # | | ???# #""" # #??##### | | ?#?# #""" + #??????? | | ???# # # ########## #??????? | | ???# # # #??????#?# #??????? | | ???# ######## #?#?#????# #+####?????? | | ???# ##?????# #??#??####+## # #?????? | | ???# ########+#????? ## # #?????? | | ???# # [ #??? ????? ?# #??????????? | | ???# # #???????????# #??????????? | | ???# # #??? ???????# ???????????? | +----------------------------------------------------+ Best States ------------- Heat Dissipation 28 Energy Generation 12 Energy Capacity 265 Matter Stores 300 Matter Capacity 300 Sight Range 16 Terrain Scan Range 14 Terrain Scan Density 10 Armor Coverage 300 Resistance: EM 15 Evasion (%) 55 Item Schematics ----------------- None Robot Schematics ------------------ None Fabricated ------------ Nothing Repaired ---------- Nothing Studied --------- None Alien Tech Used ----------------- None Achievements -------------- Let's See Who's Tougher Challenges ------------ None Game ------ Seed RagnarokStructuralAxe Manual? 0 Play Time 00:43:37 Cumulative 4.7 hours Start 2026.09.12 @ 19:59:31 End 2026.09.12 @ 21:38:03 Sessions 1 Manual Loads 0 Difficulty Rogue Special Mode None Game No. 4 Rogue 4 Adventurer 0 Explorer 0 Win Type - Total 0 Types 0/0/0/0/0/0/0/0/0/0 Lore% 2 Gallery% 5 Achievement% 6 Wizard Run 0 Options --------- Layout 1 ASCII 0 Keyboard 1 Movement Vi Keybinds 0 Fullscreen 0 Font 28/SmallcapsGlow Map View 50x35 Zoom Use 0% Tactical HUD 0 Map Filters NONE Filters NONE Steam 0 RUN: a25bcd2d-62b7-4a4a-beb1-de8ab945bbc0